bitfinex/quotes_BTCUSD_20230107
["timestamp","ask_amount","ask_price","bid_price","bid_amount"]
[1673092325020,0.76542832,16933.0,16932.0,3.0000562]
[1673092328686,0.76542832,16933.0,16932.0,2.7000562]
[1673092328687,0.32227356,16933.0,16932.0,2.7000562]
[1673092329119,0.32227356,16933.0,16932.0,2.0000562]
[1673092329600,0.32227356,16933.0,16932.0,2.3000562]
[1673092330282,0.32227356,16933.0,16932.0,3.0000562]
[1673092330747,0.32227356,16933.0,16932.0,2.7000562]
[1673092336107,0.32227356,16933.0,16932.0,2.0000562]
[1673092337525,0.32227356,16933.0,16932.0,2.7000562]
[1673092339351,0.32216486,16933.0,16932.0,2.7000562]
[1673092339845,0.32216486,16933.0,16932.0,3.3079262]
[1673092340402,0.32216486,16933.0,16932.0,2.7000562]
[1673092343415,0.32216486,16933.0,16932.0,2.0000562]
[1673092344129,0.32216486,16933.0,16932.0,2.7000562]
[1673092349385,0.32216486,16933.0,16932.0,3.0000562]
[1673092349628,0.32216486,16933.0,16932.0,3.6079262]
[1673092350156,0.32216486,16933.0,16932.0,2.9079262]
[1673092350926,0.32216486,16933.0,16932.0,2.3000562]
[1673092351170,0.32216486,16933.0,16932.0,3.0000562]
[1673092351662,0.32216486,16933.0,16932.0,2.7000562]
[1673092351901,0.32216486,16933.0,16932.0,3.0000562]
[1673092352145,0.32216486,16933.0,16932.0,2.7000562]
[1673092352386,0.32216486,16933.0,16932.0,3.0000562]
[1673092352943,0.32216486,16933.0,16932.0,2.7000562]
[1673092353398,0.32216486,16933.0,16932.0,3.0000562]
[1673092353889,0.32216486,16933.0,16932.0,3.6079262]
[1673092356112,0.76535093,16933.0,16932.0,3.6079262]
[1673092356359,0.32216486,16933.0,16932.0,3.6079262]
[1673092356860,0.76534792,16933.0,16932.0,3.6079262]
[1673092357118,0.76534792,16933.0,16932.0,2.9079262]
[1673092357654,0.76534792,16933.0,16932.0,2.3000562]
[1673092357900,0.32216486,16933.0,16932.0,2.3000562]
[1673092358466,0.32216486,16933.0,16932.0,3.0000562]
[1673092358726,0.76535643,16933.0,16932.0,3.0000562]
[1673092359230,0.76535643,16933.0,16932.0,3.6079262]
[1673092359476,0.32216486,16933.0,16932.0,3.6079262]
[1673092360041,0.76536452,16933.0,16932.0,3.6079262]
[1673092361331,0.32216486,16933.0,16932.0,2.9999676]
[1673092361578,0.76536256,16933.0,16932.0,3.6078376]
[1673092363121,0.76536256,16933.0,16932.0,2.9999676]
[1673092363381,0.32216486,16933.0,16932.0,2.9999676]
[1673092363873,0.32216486,16933.0,16932.0,3.00009273]
[1673092364385,0.32216486,16933.0,16932.0,2.30009273]
[1673092365146,0.32216486,16933.0,16932.0,3.00009273]
[1673092365647,0.32216486,16933.0,16932.0,3.60796273]
[1673092365898,0.32216486,16933.0,16932.0,3.00009273]
[1673092368102,0.32216486,16933.0,16932.0,3.60796273]
[1673092368866,0.32216486,16933.0,16932.0,3.00009273]
[1673092369114,0.32216486,16933.0,16932.0,3.60796273]
[1673092369370,0.32216486,16933.0,16932.0,3.00009273]
[1673092370183,0.32216486,16933.0,16932.0,3.60796273]
[1673092370413,0.76537256,16933.0,16932.0,3.60796273]
[1673092371163,0.76537256,16933.0,16932.0,2.90796273]
[1673092372168,0.76537256,16933.0,16932.0,3.60796273]
[1673092372920,0.76537256,16933.0,16932.0,3.00009273]
[1673092374145,0.76537256,16933.0,16932.0,2.9999676]
[1673092375145,0.76537256,16933.0,16932.0,3.6078376]
[1673092377923,0.76537256,16933.0,16932.0,3.60796273]
[1673092378422,0.76537256,16933.0,16932.0,3.00009273]
[1673092378691,0.76537256,16933.0,16932.0,3.60796273]
[1673092379924,0.76537256,16933.0,16932.0,3.00009273]
[1673092380196,0.76537256,16933.0,16932.0,3.60796273]
[1673092380693,0.76537256,16933.0,16932.0,3.00009273]
[1673092381224,0.76537256,16933.0,16932.0,2.30009273]
[1673092381485,0.76537256,16933.0,16932.0,2.90796273]
[1673092382263,0.76537256,16933.0,16932.0,3.00009273]
[1673092384325,0.76537256,16933.0,16932.0,3.60796273]
[1673092385357,0.76537256,16933.0,16932.0,3.00009273]
[1673092386226,0.76537256,16933.0,16932.0,3.60796273]
[1673092386443,0.76537256,16933.0,16932.0,3.00009273]
[1673092387215,0.76537256,16933.0,16932.0,3.60796273]
[1673092387721,0.76537256,16933.0,16932.0,3.00009273]
[1673092387996,0.76537256,16933.0,16932.0,3.60796273]
[1673092388234,0.76537256,16933.0,16932.0,2.90796273]
[1673092388724,0.76537256,16933.0,16932.0,2.30009273]
[1673092389221,0.76537256,16933.0,16932.0,2.9999676]
[1673092390407,0.32216486,16933.0,16932.0,2.9998847]
[1673092390665,0.76538442,16933.0,16932.0,3.6077547]
[1673092392712,0.76538442,16933.0,16932.0,3.60787983]
[1673092392945,0.76538442,16933.0,16932.0,3.6077547]
[1673092393196,0.76538442,16933.0,16932.0,2.9998847]
[1673092393934,0.76538442,16933.0,16932.0,3.6077547]
[1673092394183,0.76538442,16933.0,16932.0,2.9998847]
[1673092394680,0.76538442,16933.0,16932.0,3.6077547]
[1673092395176,0.76538442,16933.0,16932.0,2.9077547]
[1673092395424,0.76538442,16933.0,16932.0,2.2998847]
[1673092395679,0.76538442,16933.0,16932.0,2.9077547]
[1673092396202,0.76538442,16933.0,16932.0,3.6077547]
[1673092396722,0.76538442,16933.0,16932.0,2.9998847]
[1673092397501,0.76538442,16933.0,16932.0,3.6077547]
[1673092397768,0.76538442,16933.0,16932.0,2.9998847]
[1673092398771,0.76538442,16933.0,16932.0,3.6077547]
[1673092399269,0.32216486,16933.0,16932.0,3.6077547]
[1673092399545,0.76540342,16933.0,16932.0,2.9998847]
[1673092401735,0.32216486,16933.0,16932.0,3.6077547]
[1673092402013,0.76540386,16933.0,16932.0,3.6077547]
[1673092402267,0.76540386,16933.0,16932.0,2.9077547]
[1673092402514,0.76540386,16933.0,16932.0,2.2998847]
[1673092403285,0.76540386,16933.0,16932.0,2.9998847]
[1673092403526,0.76540386,16933.0,16932.0,3.6077547]
[1673092404325,0.76540386,16933.0,16932.0,2.9998847]
[1673092405213,0.76540386,16933.0,16932.0,3.6077547]
[1673092405461,0.76540386,16933.0,16932.0,3.3077547]
[1673092405968,0.32216486,16933.0,16932.0,3.3077547]
[1673092406215,0.76540885,16933.0,16932.0,3.3077547]
[1673092406470,0.76540885,16933.0,16932.0,2.6998847]
[1673092406471,0.32216486,16933.0,16932.0,2.6998847]
[1673092407468,0.32216486,16933.0,16932.0,3.3162547]
[1673092408375,0.32216486,16933.0,16932.0,2.7083847]
[1673092408839,0.32216486,16933.0,16932.0,3.3162547]
[1673092409359,0.32216486,16933.0,16932.0,2.7083847]
[1673092409625,0.93003486,16933.0,16932.0,2.7083847]
[1673092410103,0.32216486,16933.0,16932.0,2.7083847]
[1673092410844,0.32216486,16933.0,16932.0,2.6162547]
[1673092411089,0.32216486,16933.0,16932.0,2.0083847]
[1673092411846,0.32216486,16933.0,16932.0,2.7083847]
[1673092412095,0.32216486,16933.0,16932.0,3.3162547]
[1673092412600,0.32216486,16933.0,16932.0,2.7083847]
[1673092413131,0.93003486,16933.0,16932.0,2.7083847]
[1673092413629,0.32216486,16933.0,16932.0,2.7083847]
[1673092414623,0.32216486,16933.0,16932.0,3.3162547]
[1673092417825,0.32216486,16933.0,16932.0,2.6162547]
[1673092418316,0.32216486,16933.0,16932.0,2.0083847]
[1673092418809,0.32216486,16933.0,16932.0,3.3162547]
[1673092419065,0.32216486,16933.0,16932.0,2.7083847]
[1673092421867,0.32216486,16933.0,16932.0,2.4083847]
[1673092422884,0.32216486,16933.0,16932.0,3.3162547]
[1673092423125,0.32216486,16933.0,16932.0,2.4083847]
[1673092423875,0.32216486,16933.0,16932.0,2.7083847]
[1673092424136,0.32216486,16933.0,16932.0,3.3162547]
[1673092424361,0.32216486,16933.0,16932.0,2.7083847]
[1673092424889,0.32216486,16933.0,16932.0,2.6162547]
[1673092425831,0.32216486,16933.0,16932.0,2.7083847]
[1673092426771,0.32216486,16933.0,16932.0,3.3162547]
[1673092429275,0.32216486,16933.0,16932.0,3.31615289]
[1673092430002,0.32216486,16933.0,16932.0,3.22750278]
[1673092432016,0.32216486,16933.0,16932.0,2.61970421]
[1673092432017,0.76540541,16933.0,16932.0,2.61970421]
[1673092432744,0.76540541,16933.0,16932.0,3.31970421]
[1673092433687,0.76540415,16933.0,16932.0,3.31970421]
[1673092433931,0.76540415,16933.0,16932.0,3.22750278]
[1673092434447,0.32216486,16933.0,16932.0,3.22750278]
[1673092435148,0.76540545,16933.0,16932.0,3.22750278]
[1673092436965,0.32216486,16933.0,16932.0,2.61963278]
[1673092437407,0.32216486,16933.0,16932.0,3.22750278]
[1673092437626,0.76540502,16933.0,16932.0,3.22750278]
[1673092437872,0.76540502,16933.0,16932.0,3.31994505]
[1673092438588,0.76540502,16933.0,16932.0,2.71207505]
[1673092438842,0.76540502,16933.0,16932.0,2.61994505]
[1673092439089,0.76540502,16933.0,16932.0,2.52750278]
[1673092439550,0.76540641,16933.0,16932.0,2.52750278]
[1673092439829,0.76540641,16933.0,16932.0,3.22750278]
[1673092440344,0.32216486,16933.0,16932.0,2.61963278]
[1673092441091,0.93003486,16933.0,16932.0,2.31963278]
[1673092441355,0.32216486,16933.0,16932.0,2.61963278]
[1673092442100,0.32216486,16933.0,16932.0,2.71207505]
[1673092442995,0.32216486,16933.0,16932.0,2.61963278]
[1673092444251,0.32216486,16933.0,16932.0,2.31963278]
[1673092444735,0.32216486,16933.0,16932.0,2.61963278]
[1673092445035,0.32216486,16933.0,16932.0,2.71207505]
[1673092445218,0.32216486,16933.0,16932.0,2.41207505]
[1673092445896,0.85352181,16933.0,16932.0,2.41207505]
[1673092449149,0.32216486,16933.0,16932.0,2.41207505]
[1673092450418,0.32216486,16933.0,16932.0,2.41196795]
[1673092450644,0.92216486,16933.0,16932.0,2.41196795]
[1673092450900,0.32216486,16933.0,16932.0,2.41196795]
[1673092455247,0.32216486,16933.0,16932.0,1.71196795]
[1673092456185,0.32216486,16933.0,16932.0,2.41196795]
[1673092459448,0.32216486,16933.0,16932.0,3.01983795]
[1673092460691,0.32216486,16933.0,16932.0,2.41196795]
[1673092462213,0.32216486,16933.0,16932.0,2.31983795]
[1673092462474,0.32216486,16933.0,16932.0,1.71196795]
[1673092463318,0.32216486,16933.0,16932.0,2.41196795]
[1673092464128,0.32216486,16933.0,16932.0,3.01983795]
[1673092464413,0.32216486,16933.0,16932.0,2.41196795]
[1673092465183,0.32216486,16933.0,16932.0,3.01983795]
[1673092465452,0.3220721,16933.0,16932.0,3.01983795]
[1673092467396,0.3220721,16933.0,16932.0,2.41196795]
[1673092469275,0.3220721,16933.0,16932.0,1.71196795]
[1673092470365,0.3220721,16933.0,16932.0,2.41196795]
[1673092474832,0.3220721,16933.0,16932.0,1.23077395]
[1673092475045,0.3220721,16933.0,16932.0,2.41196795]
[1673092476200,0.3220721,16933.0,16932.0,1.71196795]
[1673092476448,0.85342905,16933.0,16932.0,1.71196795]
[1673092477414,0.85342905,16933.0,16932.0,2.41196795]
[1673092477682,0.3220721,16933.0,16932.0,2.41196795]
[1673092477901,0.85342905,16933.0,16932.0,2.41196795]
[1673092483356,0.85342905,16933.0,16932.0,1.71196795]
[1673092484390,0.85342905,16933.0,16932.0,2.41196795]
[1673092487827,0.85342905,16933.0,16932.0,2.41186508]
[1673092488071,1.45342905,16933.0,16932.0,2.41186508]
[1673092488320,0.85342905,16933.0,16932.0,2.41186508]
[1673092490482,0.85342905,16933.0,16932.0,1.71186508]
[1673092491995,0.85342905,16933.0,16932.0,2.41186508]
[1673092497522,0.3220721,16933.0,16932.0,2.41186508]
[1673092497773,0.3220721,16933.0,16932.0,2.71186508]
[1673092499434,0.3220721,16933.0,16932.0,2.41186508]
[1673092499944,0.3220721,16933.0,16932.0,2.71186508]
[1673092500207,0.3220721,16933.0,16932.0,2.41186508]
[1673092507195,0.85342905,16933.0,16932.0,2.41186508]
[1673092507411,1.46129905,16933.0,16932.0,2.41186508]
[1673092507710,1.46129905,16933.0,16932.0,2.71186508]
[1673092507934,0.3220721,16933.0,16932.0,2.71186508]
[1673092509424,0.3220721,16933.0,16932.0,2.41186508]
[1673092510454,0.85342905,16933.0,16932.0,2.41186508]
[1673092510710,0.3220721,16933.0,16932.0,2.41186508]
[1673092511840,0.85342905,16933.0,16932.0,2.41186508]
[1673092512178,0.85342905,16933.0,16932.0,2.41180125]
[1673092514935,0.3220721,16933.0,16932.0,2.41180125]
[1673092518373,0.3220721,16933.0,16932.0,1.71180125]
[1673092519483,0.3220721,16933.0,16932.0,2.41180125]
[1673092522197,0.3220721,16933.0,16932.0,2.71180125]
[1673092525541,0.3220721,16933.0,16932.0,2.01180125]
[1673092526051,0.3220721,16933.0,16932.0,2.61967125]
[1673092526306,0.3220721,16933.0,16932.0,2.01180125]
[1673092526557,0.3220721,16933.0,16932.0,2.71180125]
[1673092526811,0.3220721,16933.0,16932.0,3.31967125]
[1673092527575,0.3220721,16933.0,16932.0,2.71180125]
[1673092527839,0.3220721,16933.0,16932.0,3.31967125]
[1673092528089,0.3220721,16933.0,16932.0,2.71180125]
[1673092531902,0.76521661,16933.0,16932.0,3.31967125]
[1673092532156,0.3220721,16933.0,16932.0,2.71180125]
[1673092532413,0.76522081,16933.0,16932.0,2.71180125]
[1673092532952,0.76522081,16933.0,16932.0,2.61967125]
[1673092533206,0.76522081,16933.0,16932.0,2.01168354]
[1673092533462,0.76522081,16933.0,16932.0,2.71168354]
[1673092534243,0.7652221,16933.0,16932.0,2.71168354]
[1673092535962,0.7652221,16933.0,16932.0,2.61924127]
[1673092536932,0.7652221,16933.0,16932.0,2.7220053]
[1673092538862,0.3220721,16933.0,16932.0,2.7220053]
[1673092539116,0.76519851,16933.0,16932.0,2.7220053]
[1673092539364,0.3220721,16933.0,16932.0,2.7220053]
[1673092539648,0.3220721,16933.0,16932.0,2.0220053]
[1673092539896,0.76519709,16933.0,16932.0,2.0220053]
[1673092540145,0.76519709,16933.0,16932.0,2.01684236]
[1673092540409,0.3220721,16933.0,16932.0,2.01684236]
[1673092540664,0.3220721,16933.0,16932.0,2.71684236]
[1673092540947,0.7651923,16933.0,16932.0,2.71684236]
[1673092543255,0.7651923,16933.0,16932.0,3.32471236]
[1673092543516,0.7651923,16933.0,16932.0,2.71684236]
[1673092546503,0.7651923,16933.0,16932.0,2.01684236]
[1673092547494,0.7651923,16933.0,16932.0,2.71684236]
[1673092548003,0.3220721,16933.0,16932.0,2.71684236]
[1673092548495,0.76518294,16933.0,16932.0,2.71684236]
[1673092548943,0.3220721,16933.0,16932.0,2.71684236]
[1673092550174,0.76518254,16933.0,16932.0,2.71684236]
[1673092551152,0.76518932,16933.0,16932.0,2.71684236]
[1673092551399,0.76518932,16933.0,16932.0,3.32471236]
[1673092552387,0.76518932,16933.0,16932.0,2.71684236]
[1673092553590,0.76518932,16933.0,16932.0,2.01684236]
[1673092553849,0.76518932,16933.0,16932.0,2.62471236]
[1673092554617,0.76518932,16933.0,16932.0,3.32471236]
[1673092556393,0.76518932,16933.0,16932.0,2.71684236]
[1673092556893,0.3220721,16933.0,16932.0,2.71684236]
[1673092558130,0.3220721,16933.0,16932.0,3.32471236]
[1673092558879,0.3220721,16933.0,16932.0,2.71684236]
[1673092559504,0.3220721,16933.0,16932.0,3.32471236]
[1673092560123,0.3220721,16933.0,16932.0,2.71684236]
[1673092560531,0.3220721,16933.0,16932.0,2.01684236]
[1673092562021,0.3220721,16933.0,16932.0,2.71684236]
[1673092562287,0.3220721,16933.0,16932.0,3.32471236]
[1673092562566,0.3220721,16933.0,16932.0,3.32460172]
[1673092562804,0.3220721,16933.0,16932.0,2.71673172]
[1673092563778,0.3220721,16933.0,16932.0,2.41673172]
[1673092563996,0.3220721,16933.0,16932.0,2.71673172]
[1673092565517,0.3220721,16933.0,16932.0,2.41673172]
[1673092569559,0.85342905,16933.0,16932.0,2.41673172]
[1673092571651,1.46129905,16933.0,16932.0,2.41673172]
[1673092572162,0.85342905,16933.0,16932.0,2.41673172]
[1673092572895,1.45342905,16933.0,16932.0,2.41565072]
[1673092573628,1.45342905,16933.0,16932.0,2.13145803]
[1673092573885,2.08791463,16933.0,16932.0,2.13145803]
[1673092574104,3.0797024,16933.0,16932.0,2.13145803]
[1673092576000,2.69578463,16933.0,16932.0,2.13145803]
[1673092577525,3.0795774,16933.0,16932.0,2.13145803]
[1673092578009,2.08791463,16933.0,16932.0,2.13145803]
[1673092578470,1.48791463,16933.0,16932.0,2.13145803]
[1673092581810,1.71978989,16933.0,16932.0,2.13145803]
[1673092582321,1.48791463,16933.0,16932.0,2.13145803]
[1673092585051,1.48791463,16933.0,16932.0,2.028694]
[1673092593916,1.48791463,16933.0,16932.0,2.12628176]
[1673092595171,1.48791463,16933.0,16932.0,1.328694]
[1673092595945,1.48791463,16933.0,16932.0,1.328384]
[1673092596162,1.48791463,16933.0,16932.0,2.028384]
[1673092602031,1.48791463,16933.0,16932.0,1.328384]
[1673092603064,1.48791463,16933.0,16932.0,2.028384]
[1673092606401,0.85342905,16933.0,16932.0,2.028384]
[1673092608245,0.85342905,16933.0,16932.0,2.12535235]
[1673092610056,0.85342905,16933.0,16932.0,2.028384]
[1673092612403,0.85342905,16933.0,16932.0,1.328384]
[1673092613172,0.3220721,16933.0,16932.0,1.328384]
[1673092613411,0.3220721,16933.0,16932.0,2.028384]
[1673092614164,0.3220721,16933.0,16932.0,2.12535099]
[1673092614936,0.3220721,16933.0,16932.0,2.028384]
[1673092619158,1.3647796,16933.0,16932.0,2.12579652]
[1673092619414,1.36477945,16933.0,16932.0,2.12579652]
[1673092619941,1.36477945,16933.0,16932.0,2.028384]
[1673092620211,1.96250736,16933.0,16932.0,2.028384]
[1673092620463,1.59776328,16933.0,16932.0,2.028384]
[1673092620721,0.98989328,16933.0,16932.0,2.02827109]
[1673092621513,1.59776328,16933.0,16932.0,2.02827109]
[1673092621734,2.19538101,16933.0,16932.0,2.02827109]
[1673092621979,1.5976531,16933.0,16932.0,2.02827109]
[1673092625717,2.19538101,16933.0,16932.0,1.32827109]
[1673092625960,2.57002064,16933.0,16932.0,1.32827109]
[1673092626439,1.58751101,16933.0,16932.0,1.32827109]
[1673092626943,1.58751101,16933.0,16932.0,2.02827109]
[1673092626944,0.9897831,16933.0,16932.0,2.02827109]
[1673092628204,0.9897831,16933.0,16932.0,2.12568361]
[1673092632731,0.9897831,16933.0,16932.0,1.42568361]
[1673092633769,0.9897831,16933.0,16932.0,2.12568361]
[1673092634022,0.9897831,16933.0,16932.0,2.02827109]
[1673092635027,0.9897831,16933.0,16932.0,2.12539075]
[1673092635285,1.96199603,16933.0,16932.0,2.12539075]
[1673092636519,1.96287265,16933.0,16932.0,2.12539075]
[1673092638276,1.58751101,16933.0,16932.0,2.12539075]
[1673092638990,1.58751101,16933.0,16932.0,2.02827109]
[1673092639726,2.19538101,16933.0,16932.0,1.32827109]
[1673092639945,2.57059516,16933.0,16932.0,1.32827109]
[1673092640196,2.19538101,16933.0,16932.0,1.42539075]
[1673092640932,2.19538101,16933.0,16932.0,2.12539075]
[1673092641177,1.58751101,16933.0,16932.0,2.12539075]
[1673092643618,0.9897831,16933.0,16932.0,2.12539075]
[1673092643840,0.9897831,16933.0,16932.0,2.12531009]
[1673092644059,0.9897831,16933.0,16932.0,2.02819043]
[1673092644572,1.58751101,16933.0,16932.0,2.02819043]
[1673092644832,2.19538101,16933.0,16932.0,2.02819043]
[1673092645085,2.57036972,16933.0,16932.0,2.02819043]
[1673092645864,2.09589789,16933.0,16932.0,2.02819043]
[1673092646113,2.09589789,16933.0,16932.0,2.12531009]
[1673092646343,1.48802789,16933.0,16932.0,2.12531009]
[1673092646840,1.48802789,16933.0,16932.0,1.42531009]
[1673092647134,2.09589789,16933.0,16932.0,1.42531009]
[1673092647899,2.09589789,16933.0,16932.0,2.12531009]
[1673092648397,1.48802789,16933.0,16932.0,2.12531009]
[1673092648650,1.86212912,16933.0,16932.0,2.12531009]
[1673092648890,2.46994693,16933.0,16932.0,2.12531009]
[1673092649155,2.46994693,16933.0,16932.0,2.02819043]
[1673092649935,2.46992578,16933.0,16932.0,2.02819043]
[1673092650206,2.09589789,16933.0,16932.0,2.12531009]
[1673092650937,2.46992563,16933.0,16932.0,2.02819043]
[1673092651190,2.09589789,16933.0,16932.0,2.02819043]
[1673092652204,2.09589789,16933.0,16932.0,2.12531009]
[1673092653148,2.46989295,16933.0,16932.0,2.12531009]
[1673092656065,2.46989295,16933.0,16932.0,1.42531009]
[1673092657133,2.46989295,16933.0,16932.0,2.12531009]
[1673092657874,2.469981,16933.0,16932.0,2.12531009]
[1673092658061,2.469981,16933.0,16932.0,2.02819043]
[1673092658877,2.09589789,16933.0,16932.0,2.02819043]
[1673092659130,2.46990967,16933.0,16932.0,2.02819043]
[1673092660123,2.46990967,16933.0,16932.0,2.12502553]
[1673092660375,2.46985768,16933.0,16932.0,2.12502553]
[1673092661610,2.09589789,16933.0,16932.0,2.12502553]
[1673092661857,1.48802789,16933.0,16932.0,2.12502553]
[1673092662103,1.48802789,16933.0,16932.0,2.02819043]
[1673092663122,1.48802789,16933.0,16932.0,1.32819043]
[1673092663887,1.82720189,16933.0,16932.0,1.32819043]
[1673092664153,1.48802789,16933.0,16932.0,2.02819043]
[1673092667880,1.48802789,16933.0,16932.0,2.02808512]
[1673092675769,1.48802789,16933.0,16932.0,1.32808512]
[1673092676735,1.48802789,16933.0,16932.0,2.02808512]
[1673092677712,0.89029998,16933.0,16932.0,2.02808512]
[1673092677967,1.48802789,16933.0,16932.0,2.02808512]
[1673092680043,0.89029998,16933.0,16932.0,2.02808512]
[1673092681825,1.48802789,16933.0,16932.0,2.02808512]
[1673092682837,1.48802789,16933.0,16932.0,1.32808512]
[1673092683815,1.48802789,16933.0,16932.0,2.02808512]
[1673092684685,1.43110048,16933.0,16932.0,2.02808512]
[1673092684944,0.83337257,16933.0,16932.0,2.02808512]
[1673092685202,1.43110048,16933.0,16932.0,2.02808512]
[1673092685455,2.03897048,16933.0,16932.0,2.02808512]
[1673092686426,1.43110048,16933.0,16932.0,2.02808512]
[1673092688667,1.43110048,16933.0,16932.0,2.02800984]
[1673092689634,1.43110048,16933.0,16932.0,1.32800984]
[1673092690593,2.03897048,16933.0,16932.0,1.32800984]
[1673092690843,2.03897048,16933.0,16932.0,2.02800984]
[1673092691311,1.43110048,16933.0,16932.0,2.02800984]
[1673092694892,2.03897048,16933.0,16932.0,2.02800984]
[1673092695373,1.43110048,16933.0,16932.0,2.02800984]
[1673092696831,1.43110048,16933.0,16932.0,1.32800984]
[1673092697069,2.03897048,16933.0,16932.0,1.32800984]
[1673092697652,2.03897048,16933.0,16932.0,2.02800984]
[1673092698567,1.43110048,16933.0,16932.0,2.02800984]
[1673092703320,1.43110048,16933.0,16932.0,2.1190714]
[1673092703806,1.43110048,16933.0,16932.0,1.4190714]
[1673092704524,2.03897048,16933.0,16932.0,1.4190714]
[1673092704775,2.03897048,16933.0,16932.0,2.1190714]
[1673092705020,1.43110048,16933.0,16932.0,2.02800984]
[1673092706733,1.43099973,16933.0,16932.0,2.02800984]
[1673092709898,2.03886973,16933.0,16932.0,2.02800984]
[1673092711009,2.03886973,16933.0,16932.0,2.12319577]
[1673092711250,1.43099973,16933.0,16932.0,2.12319577]
[1673092713840,1.80467139,16933.0,16932.0,2.12319577]
[1673092714094,1.80464254,16933.0,16932.0,1.32800984]
[1673092714342,2.41251254,16933.0,16932.0,1.32800984]
[1673092715053,2.41251254,16933.0,16932.0,2.02800984]
[1673092718190,2.41251254,16933.0,16932.0,2.12305378]
[1673092719263,2.41251254,16933.0,16932.0,2.02800984]
[1673092720018,2.41251254,16933.0,16932.0,2.12263529]
[1673092721243,2.41238802,16933.0,16932.0,2.12263529]
[1673092723790,2.03886973,16933.0,16932.0,2.12263529]
[1673092724020,1.43099973,16933.0,16932.0,2.12263529]
[1673092724754,1.43099973,16933.0,16932.0,1.42263529]
[1673092725719,1.43099973,16933.0,16932.0,2.12263529]
[1673092725955,2.03886973,16933.0,16932.0,2.12263529]
[1673092727007,1.43099973,16933.0,16932.0,2.12263529]
[1673092729692,1.43099973,16933.0,16932.0,2.12253664]
[1673092729959,1.43099973,16933.0,16932.0,2.02791119]
[1673092730181,1.38099973,16933.0,16932.0,2.02791119]
[1673092731715,1.38099973,16933.0,16932.0,1.32791119]
[1673092732189,1.72017373,16933.0,16932.0,1.32791119]
[1673092732748,1.72017373,16933.0,16932.0,2.02791119]
[1673092733015,1.38099973,16933.0,16932.0,2.02791119]
[1673092733268,1.38099973,16933.0,16932.0,1.43731419]
[1673092733786,1.98886973,16933.0,16932.0,1.43731419]
[1673092734831,2.36086908,16933.0,16932.0,1.43731419]
[1673092735082,1.98886973,16933.0,16932.0,1.531805]
[1673092736637,2.36083923,16933.0,16932.0,1.531805]
[1673092738181,2.36083923,16933.0,16932.0,1.43731419]
[1673092738769,2.36083923,16933.0,16932.0,0.73731419]
[1673092739681,2.36083923,16933.0,16932.0,1.43731419]
[1673092740965,1.38099973,16933.0,16932.0,1.43731419]
[1673092743915,1.75244331,16933.0,16932.0,1.43731419]
[1673092744200,2.36031331,16933.0,16932.0,1.43731419]
[1673092746924,1.7625854,16933.0,16932.0,1.43731419]
[1673092747175,1.7625854,16933.0,16932.0,0.84671719]
[1673092749485,1.1547154,16933.0,16932.0,0.84671719]
[1673092750212,1.1547154,16933.0,16932.0,0.94040061]
[1673092750428,1.1547154,16933.0,16932.0,0.24031488]
[1673092750691,2.3625854,16933.0,16932.0,0.24031488]
[1673092751508,2.3625854,16933.0,16932.0,0.94031488]
[1673092752003,1.7547154,16933.0,16932.0,0.94031488]
[1673092752510,2.3625854,16933.0,16932.0,0.94031488]
[1673092758646,2.62880743,16933.0,16932.0,0.94031488]
[1673092759382,2.3625854,16933.0,16932.0,0.94031488]
[1673092764561,2.3625854,16933.0,16932.0,0.24031488]
[1673092765579,2.3625854,16933.0,16932.0,0.94031488]
[1673092771471,2.3625854,16933.0,16932.0,0.24031488]
[1673092772410,2.3625854,16933.0,16932.0,0.94031488]
[1673092775288,2.3625854,16933.0,16932.0,0.94022694]
[1673092777262,2.5364854,16933.0,16932.0,0.94022694]
[1673092778506,2.5364854,16933.0,16932.0,0.24022694]
[1673092779266,2.5364854,16933.0,16932.0,0.94022694]
[1673092780275,2.92130423,16933.0,16932.0,0.94022694]
[1673092783972,2.5364854,16933.0,16932.0,0.94022694]
[1673092785216,2.5364854,16933.0,16932.0,0.24022694]
[1673092786219,2.5364854,16933.0,16932.0,0.94022694]
[1673092791444,1.9286154,16933.0,16932.0,0.94022694]
[1673092791951,2.5364854,16933.0,16932.0,0.94022694]
[1673092792202,2.5364854,16933.0,16932.0,0.24022694]
[1673092793206,2.5364854,16933.0,16932.0,0.94022694]
[1673092793967,1.9286154,16933.0,16932.0,0.94022694]
[1673092796181,1.44190998,16933.0,16932.0,0.94014576]
[1673092797427,2.04977998,16933.0,16932.0,0.94014576]
[1673092799421,2.04970461,16933.0,16932.0,0.94014576]
[1673092800719,1.56496645,16933.0,16932.0,0.94014576]
[1673092801759,0.95709645,16933.0,16932.0,0.94014576]
[1673092802008,0.95709645,16933.0,16932.0,0.23775066]
[1673092803058,0.95709645,16933.0,16932.0,0.93775066]
[1673092803311,1.56496645,16933.0,16932.0,0.93775066]
[1673092803591,1.56496645,16933.0,16932.0,0.93786866]
[1673092804836,1.18481221,16933.0,16932.0,0.93786866]
[1673092805088,1.18481221,16933.0,16932.0,0.76102029]
[1673092805089,2.64998721,16933.0,16932.0,0.76102029]
[1673092805348,1.90741051,16933.0,16932.0,0.76102029]
[1673092805596,1.52255383,16933.0,16932.0,0.78547156]
[1673092805853,2.50801079,16933.0,16932.0,0.78547156]
[1673092806631,2.50752207,16933.0,16932.0,0.78547156]
[1673092806890,3.37943368,16933.0,16932.0,0.78547156]
[1673092807142,2.50752207,16933.0,16932.0,0.78547156]
[1673092807931,2.68182211,16933.0,16932.0,0.78547156]
[1673092808197,3.96648862,16933.0,16932.0,0.78547156]
[1673092808466,4.06926411,16933.0,16932.0,0.78547156]
[1673092808765,4.33362477,16933.0,16932.0,0.78547156]
[1673092809752,4.03362477,16933.0,16932.0,0.78547156]
[1673092810116,4.03362477,16933.0,16932.0,0.08547156]
[1673092810320,4.62418677,16933.0,16932.0,0.08547156]
[1673092811319,4.92418677,16933.0,16932.0,0.08547156]
[1673092812602,4.92418677,16933.0,16932.0,0.000118]
[1673092812854,5.41478677,16933.0,16932.0,0.000118]
[1673092813103,5.41478677,16933.0,16932.0,5.8e-05]
[1673092814126,6.00534877,16933.0,16932.0,5.8e-05]
[1673092814617,6.00534877,16933.0,16932.0,0.09022182]
[1673092815612,6.00534877,16933.0,16932.0,5.8e-05]
[1673092816631,6.00534877,16933.0,16932.0,0.09011635]
[1673092817628,6.00534877,16933.0,16932.0,5.8e-05]
[1673092818407,6.04001,16933.0,16932.0,5.8e-05]
[1673092818660,6.04001,16933.0,16932.0,0.0899753]
[1673092818929,4.51370758,16933.0,16932.0,0.0899753]
[1673092819186,5.38358257,16933.0,16932.0,0.0899753]
[1673092819430,5.51958257,16933.0,16932.0,0.004058]
[1673092819934,5.38358257,16933.0,16932.0,5.8e-05]
[1673092820183,6.4134597,16933.0,16932.0,0.004058]
[1673092821191,6.4134597,16933.0,16932.0,0.00345548]
[1673092823761,6.4134597,16933.0,16932.0,0.00196177]
[1673092824778,6.4134597,16933.0,16932.0,0.00179607]
[1673092826545,5.54258471,16933.0,16932.0,0.00179607]
[1673092827287,5.36868471,16933.0,16932.0,0.00179607]
[1673092828015,6.23887088,16933.0,16932.0,0.00179607]
[1673092828266,5.36868471,16933.0,16932.0,0.00179607]